{"text_format":"1","workbook":"xlsx","n_sheets":1,"sheets":["4-Year Student Plan Template"],"not_rendered":{"charts":0,"images":2,"macros":0,"external_links":0,"defined_names":1,"comments":0,"pivot_tables":0},"unopened":[],"bounds":{"document_bytes":16777216,"sheet_cells":100000,"rows_first":2000,"rows_last":500,"rows_between":2000,"halvings":0,"cell_chars":16384,"cell_head_chars":4096},"cells_cut":0,"cells_raw":0,"read":"whole","date_system":"1900"}

{"sheet":"4-Year Student Plan Template","index":0,"n_rows":64,"n_cols":17,"rows_kept":64,"cut":false,"hidden":false,"merged":[[61,2,61,3],[61,5,61,6],[61,8,61,9],[61,11,61,12],[16,11,16,12],[46,2,46,3],[46,5,46,6],[3,11,3,13],[63,2,63,15],[61,14,61,15],[60,2,60,3],[60,5,60,6],[60,8,60,9],[60,11,60,12],[60,14,60,15],[31,14,31,15],[45,2,45,3],[45,5,45,6],[45,8,45,9],[45,11,45,12],[45,14,45,15],[31,2,31,3],[31,5,31,6],[31,8,31,9],[31,11,31,12],[30,2,30,3],[30,5,30,6],[30,8,30,9],[30,11,30,12],[30,14,30,15],[5,1,16,1],[15,2,15,3],[15,5,15,6],[16,2,16,3],[16,5,16,6],[20,1,31,1],[35,1,46,1],[50,1,61,1],[33,14,33,16],[48,2,48,4],[48,5,48,7],[48,8,48,10],[48,11,48,13],[48,14,48,16],[46,8,46,9],[46,11,46,12],[46,14,46,15],[33,2,33,4],[33,5,33,7],[33,8,33,10],[33,11,33,13],[3,14,3,16],[18,2,18,4],[18,5,18,7],[18,8,18,10],[18,11,18,13],[18,14,18,16],[15,8,15,9],[15,11,15,12],[15,14,15,15],[16,8,16,9],[3,2,3,4],[3,5,3,7],[3,8,3,10],[16,14,16,15]]}
[]
[null,"4-YEAR STUDENT PLAN TEMPLATE"]
[]
[null,null,"FRESHMAN FALL",null,null,"FRESHMAN WINTER SHORT TERM",null,null,"FRESHMAN SPRING",null,null,"FRESHMAN SUMMER SESSION I",null,null,"FRESHMAN SUMMER SESSION II"]
[null,null,"COURSE #","COURSE TITLE","HRS","COURSE #","COURSE TITLE","HRS","COURSE #","COURSE TITLE","HRS","COURSE #","COURSE TITLE","HRS","COURSE #","COURSE TITLE","HRS"]
[null,"F R E S H M A N    Y E A R"]
[]
[]
[]
[]
[]
[]
[]
[]
[]
[null,null,"FRESHMAN FALL TOTAL",null,{"$f":"SUM(E6:E15)","v":0},"FRESHMAN WINTER SHORT TERM TOTAL",null,{"$f":"SUM(H6:H15)","v":0},"FRESHMAN SPRING TOTAL",null,{"$f":"SUM(K6:K15)","v":0},"FRESHMAN SUMMER SESSION I TOTAL",null,{"$f":"SUM(N6:N15)","v":0},"FRESHMAN SUMMER SESSION II TOTAL",null,{"$f":"SUM(Q6:Q15)","v":0}]
[null,null,"CUMULATIVE TOTAL",null,{"$f":"E16","v":0},"CUMULATIVE TOTAL",null,{"$f":"E17+H16","v":0},"CUMULATIVE TOTAL",null,{"$f":"H17+K16","v":0},"CUMULATIVE TOTAL",null,{"$f":"K17+N16","v":0},"CUMULATIVE TOTAL",null,{"$f":"N17+Q16","v":0}]
[]
[null,null,"SOPHOMORE FALL",null,null,"SOPHOMORE WINTER SHORT TERM",null,null,"SOPHOMORE SPRING",null,null,"SOPHOMORE SUMMER SESSION I",null,null,"SOPHOMORE SUMMER SESSION II"]
[null,null,"COURSE #","COURSE TITLE","HRS","COURSE #","COURSE TITLE","HRS","COURSE #","COURSE TITLE","HRS","COURSE #","COURSE TITLE","HRS","COURSE #","COURSE TITLE","HRS"]
[null,"S O P H O M O R E    Y E A R"]
[]
[]
[]
[]
[]
[]
[]
[]
[]
[null,null,"SOPHOMORE FALL TOTAL",null,{"$f":"SUM(E21:E30)","v":0},"SOPHOMORE WINTER SHORT TERM TOTAL",null,{"$f":"SUM(H21:H30)","v":0},"SOPHOMORE SPRING TOTAL",null,{"$f":"SUM(K21:K30)","v":0},"SOPHOMORE SUMMER SESSION I TOTAL",null,{"$f":"SUM(N21:N30)","v":0},"SOPHOMORE SUMMER SESSION II TOTAL",null,{"$f":"SUM(Q21:Q30)","v":0}]
[null,null,"CUMULATIVE TOTAL",null,{"$f":"Q17+E31","v":0},"CUMULATIVE TOTAL",null,{"$f":"E32+H31","v":0},"CUMULATIVE TOTAL",null,{"$f":"H32+K31","v":0},"CUMULATIVE TOTAL",null,{"$f":"K32+N31","v":0},"CUMULATIVE TOTAL",null,{"$f":"N32+Q31","v":0}]
[]
[null,null,"JUNIOR FALL",null,null,"JUNIOR WINTER SHORT TERM",null,null,"JUNIOR SPRING",null,null,"JUNIOR SUMMER SESSION I",null,null,"JUNIOR SUMMER SESSION II"]
[null,null,"COURSE #","COURSE TITLE","HRS","COURSE #","COURSE TITLE","HRS","COURSE #","COURSE TITLE","HRS","COURSE #","COURSE TITLE","HRS","COURSE #","COURSE TITLE","HRS"]
[null,"J U N I O R    Y E A R"]
[]
[]
[]
[]
[]
[]
[]
[]
[]
[null,null,"JUNIOR FALL TOTAL",null,{"$f":"SUM(E36:E45)","v":0},"JUNIOR WINTER SHORT TERM TOTAL",null,{"$f":"SUM(H36:H45)","v":0},"JUNIOR SPRING TOTAL",null,{"$f":"SUM(K36:K45)","v":0},"JUNIOR SUMMER SESSION I TOTAL",null,{"$f":"SUM(N36:N45)","v":0},"JUNIOR SUMMER SESSION II TOTAL",null,{"$f":"SUM(Q36:Q45)","v":0}]
[null,null,"CUMULATIVE TOTAL",null,{"$f":"Q32+E46","v":0},"CUMULATIVE TOTAL",null,{"$f":"E47+H46","v":0},"CUMULATIVE TOTAL",null,{"$f":"H47+K46","v":0},"CUMULATIVE TOTAL",null,{"$f":"K47+N46","v":0},"CUMULATIVE TOTAL",null,{"$f":"N47+Q46","v":0}]
[]
[null,null,"SENIOR FALL",null,null,"SENIOR WINTER SHORT TERM",null,null,"SENIOR SPRING",null,null,"SENIOR SUMMER SESSION I",null,null,"SENIOR SUMMER SESSION II"]
[null,null,"COURSE #","COURSE TITLE","HRS","COURSE #","COURSE TITLE","HRS","COURSE #","COURSE TITLE","HRS","COURSE #","COURSE TITLE","HRS","COURSE #","COURSE TITLE","HRS"]
[null,"S E N I O R    Y E A R"]
[]
[]
[]
[]
[]
[]
[]
[]
[]
[null,null,"SENIOR FALL TOTAL",null,{"$f":"SUM(E51:E60)","v":0},"SENIOR WINTER SHORT TERM TOTAL",null,{"$f":"SUM(H51:H60)","v":0},"SENIOR SPRING TOTAL",null,{"$f":"SUM(K51:K60)","v":0},"SENIOR SUMMER SESSION I TOTAL",null,{"$f":"SUM(N51:N60)","v":0},"SENIOR SUMMER SESSION II TOTAL",null,{"$f":"SUM(Q51:Q60)","v":0}]
[null,null,"CUMULATIVE TOTAL",null,{"$f":"Q47+E61","v":0},"CUMULATIVE TOTAL",null,{"$f":"E62+H61","v":0},"CUMULATIVE TOTAL",null,{"$f":"H62+K61","v":0},"CUMULATIVE TOTAL",null,{"$f":"K62+N61","v":0},"CUMULATIVE TOTAL",null,{"$f":"N62+Q61","v":0}]
[]
[null,null,"CLICK HERE TO CREATE 4-YEAR STUDENT PLAN TEMPLATES IN SMARTSHEET"]